bitfinex/quotes_BTCUSD_20250313
["timestamp","ask_amount","ask_price","bid_price","bid_amount"]
[1741849279214,0.003,83488.0,83487.0,0.004]
[1741849279410,0.003,83488.0,83487.0,0.015977]
[1741849280188,0.003,83488.0,83487.0,0.004]
[1741849280438,0.014977,83488.0,83487.0,0.004]
[1741849281826,0.011977,83488.0,83487.0,0.002]
[1741849282231,0.088877,83488.0,83487.0,0.002]
[1741849282428,0.011977,83488.0,83487.0,0.002]
[1741849282795,0.011977,83488.0,83479.0,0.011979]
[1741849282796,0.251535,83487.0,83479.0,0.011979]
[1741849283004,0.011978,83482.0,83474.0,0.251573]
[1741849283411,0.251553,83481.0,83474.0,0.251573]
[1741849283818,0.011978,83480.0,83475.0,0.01273355]
[1741849284068,0.011978,83480.0,83475.0,0.00075455]
[1741849284217,0.011978,83480.0,83475.0,0.01273355]
[1741849284428,0.011978,83486.0,83478.0,0.251561]
[1741849284644,0.011978,83485.0,83476.0,0.239589]
[1741849284843,0.011978,83483.0,83476.0,0.251568]
[1741849285056,0.011978,83483.0,83478.0,0.011979]
[1741849285401,0.011978,83485.0,83478.0,0.011979]
[1741849285402,0.011978,83485.0,83480.0,0.011978]
[1741849285600,0.251544,83484.0,83479.0,0.25156]
[1741849285814,0.251544,83484.0,83479.0,0.011979]
[1741849285985,0.239572,83482.0,83476.0,0.251568]
[1741849286586,0.01878003,83483.0,83480.0,0.251554]
[1741849286785,0.01878003,83483.0,83481.0,0.011978]
[1741849286966,0.01878003,83483.0,83480.0,0.251555]
[1741849287184,0.011978,83480.0,83479.0,0.000339]
[1741849288372,0.27033203,83483.0,83479.0,0.000339]
[1741849288373,0.01878003,83483.0,83482.0,0.011978]
[1741849290231,0.01878003,83483.0,83482.0,0.012978]
[1741849291204,0.01878003,83483.0,83482.0,0.25355]
[1741849291570,0.01878003,83483.0,83482.0,0.25255]
[1741849291683,0.01878003,83483.0,83482.0,0.25355]
[1741849292084,0.01878003,83483.0,83482.0,0.25255]
[1741849292298,0.01878003,83483.0,83482.0,0.33575]
[1741849292769,0.01878003,83483.0,83482.0,0.33675]
[1741849293170,0.01878003,83483.0,83482.0,0.33575]
[1741849293540,0.01878003,83483.0,83482.0,0.33775]
[1741849293707,0.01878003,83483.0,83482.0,0.33575]
[1741849293904,0.01878003,83483.0,83482.0,0.33375]
[1741849294163,0.01878003,83483.0,83482.0,0.33575]
[1741849294384,0.01878003,83483.0,83482.0,0.33775]
[1741849295385,0.01878003,83483.0,83482.0,0.33575]
[1741849295583,0.01878003,83483.0,83482.0,0.33375]
[1741849295802,0.01878003,83483.0,83482.0,0.33575]
[1741849296005,0.01878003,83483.0,83482.0,0.33775]
[1741849296346,0.01878003,83483.0,83482.0,0.33575]
[1741849296818,0.01878003,83483.0,83482.0,0.33775]
[1741849299678,0.01878003,83483.0,83482.0,0.338089]
[1741849300095,0.01878003,83483.0,83482.0,0.255889]
[1741849300963,0.01878003,83483.0,83482.0,0.243911]
[1741849301170,0.01878003,83483.0,83482.0,0.255889]
[1741849302081,0.01878003,83483.0,83482.0,0.251889]
[1741849302252,0.01878003,83483.0,83482.0,0.252889]
[1741849302461,0.01878003,83483.0,83482.0,0.253889]
[1741849302827,0.01878003,83483.0,83482.0,0.252889]
[1741849303281,0.01878003,83483.0,83482.0,0.253889]
[1741849304807,0.01878003,83483.0,83482.0,0.014317]
[1741849304999,0.01198586,83487.0,83482.0,0.014317]
[1741849305556,0.02396286,83487.0,83482.0,0.002339]
[1741849305905,0.251547,83484.0,83482.0,0.002339]
[1741849306156,0.011978,83483.0,83482.0,0.001339]
[1741849307110,0.011978,83483.0,83482.0,0.000339]
[1741849308243,0.014978,83483.0,83482.0,0.000339]
[1741849308453,0.03375858,83483.0,83482.0,0.000339]
[1741849309966,0.03344115,83483.0,83482.0,0.000339]
[1741849316555,0.02178058,83483.0,83482.0,0.000339]
[1741849316719,0.02178058,83483.0,83482.0,0.012317]
[1741849317119,0.02178058,83483.0,83482.0,0.000339]
[1741849317343,0.03375858,83483.0,83482.0,0.000339]
[1741849318166,0.01878058,83483.0,83482.0,0.000339]
[1741849318370,0.01978058,83483.0,83482.0,0.251889]
[1741849318564,0.001,83483.0,83482.0,0.251889]
[1741849318794,0.012978,83483.0,83482.0,0.000339]
[1741849319329,0.001,83483.0,83482.0,0.000339]
[1741849319543,0.012978,83483.0,83482.0,0.000339]
[1741849319746,0.252547,83483.0,83482.0,0.000339]
[1741849320761,0.251547,83483.0,83482.0,0.000339]
[1741849321235,0.253547,83483.0,83482.0,0.000339]
[1741849321394,0.254547,83483.0,83482.0,0.000339]
[1741849321795,0.27332725,83483.0,83482.0,0.000339]
[1741849321978,0.27232725,83483.0,83482.0,0.000339]
[1741849322347,0.27332725,83483.0,83482.0,0.000339]
[1741849322495,0.27032725,83483.0,83482.0,0.000339]
[1741849322702,0.27232725,83483.0,83482.0,0.000339]
[1741849323287,0.01878025,83483.0,83482.0,0.000339]
[1741849323487,0.02078025,83483.0,83482.0,0.000339]
[1741849323932,0.03475825,83483.0,83482.0,0.000339]
[1741849324666,0.02278025,83483.0,83482.0,0.000339]
[1741849325140,0.26234925,83483.0,83482.0,0.000339]
[1741849325583,0.02278025,83483.0,83482.0,0.000339]
[1741849326043,0.26234925,83483.0,83482.0,0.000339]
[1741849326271,0.27432725,83483.0,83482.0,0.000339]
[1741849333557,0.02278025,83483.0,83482.0,0.000339]
[1741849333763,0.02278025,83483.0,83482.0,0.251889]
[1741849333980,0.02278025,83483.0,83482.0,0.327089]
[1741849334222,0.004,83483.0,83482.0,0.327089]
[1741849334852,0.004,83483.0,83482.0,0.075539]
[1741849335117,0.002,83483.0,83482.0,0.075539]
[1741849335522,0.012978,83483.0,83482.0,0.075539]
[1741849335693,0.013978,83483.0,83482.0,0.075539]
[1741849335852,0.012978,83483.0,83482.0,0.000339]
[1741849336291,0.013978,83483.0,83482.0,0.000339]
[1741849336472,0.0141475,83483.0,83482.0,0.000339]
[1741849337068,0.0131475,83483.0,83482.0,0.000339]
[1741849337515,0.03292688,83483.0,83482.0,0.000339]
[1741849338994,0.02094888,83483.0,83482.0,0.000339]
[1741849339786,0.02094888,83483.0,83482.0,0.012317]
[1741849340197,0.02094888,83483.0,83482.0,0.000339]
[1741849341550,0.02094888,83483.0,83482.0,0.251889]
[1741849341754,0.02094888,83483.0,83482.0,0.383789]
[1741849343705,0.02094888,83483.0,83482.0,0.132239]
[1741849343706,0.27249588,83483.0,83482.0,0.132239]
[1741849343936,0.27249588,83483.0,83482.0,0.000339]
[1741849344887,0.02094888,83483.0,83482.0,0.000339]
[1741849345321,0.26051788,83483.0,83482.0,0.000339]
[1741849345527,0.02094888,83483.0,83482.0,0.000339]
[1741849346462,0.26051788,83483.0,83482.0,0.000339]
[1741849346665,0.27249588,83483.0,83482.0,0.000339]
[1741849347886,0.02094888,83483.0,83482.0,0.000339]
[1741849348409,0.02094888,83483.0,83482.0,0.251889]
[1741849354262,0.02094888,83483.0,83482.0,0.330389]
[1741849354492,0.0021695,83483.0,83482.0,0.375689]
[1741849355068,0.0011695,83483.0,83482.0,0.375689]
[1741849355264,0.0001695,83483.0,83482.0,0.375689]
[1741849355468,0.0021695,83483.0,83482.0,0.375689]
[1741849356048,0.0011695,83483.0,83482.0,0.375689]
[1741849356268,0.0011695,83483.0,83482.0,0.378689]
[1741849356640,0.0001695,83483.0,83482.0,0.378689]
[1741849356843,5e-07,83483.0,83482.0,0.378689]
[1741849357044,5e-07,83483.0,83482.0,0.381689]
[1741849357364,5e-07,83483.0,83482.0,0.39622985]
[1741849358410,5e-07,83483.0,83482.0,0.41973619]
[1741849358615,5e-07,83483.0,83482.0,1.91973619]
[1741849360750,5e-07,83483.0,83482.0,1.91673619]
[1741849361446,5e-07,83483.0,83482.0,1.91873619]
[1741849361648,5e-07,83483.0,83482.0,0.41373619]
[1741849362234,1e-06,83487.0,83486.0,0.328139]
[1741849362436,1e-06,83487.0,83486.0,0.34267985]
[1741849363846,1e-06,83487.0,83486.0,0.34667985]
[1741849365076,1e-06,83487.0,83486.0,0.35067985]
[1741849365276,1e-06,83487.0,83486.0,0.39677985]
[1741849365489,0.0008,83509.0,83499.0,0.011976]
[1741849365743,0.0008,83509.0,83499.0,0.39541645]
[1741849365946,0.0008,83509.0,83499.0,0.394219]
[1741849366423,0.0008,83509.0,83499.0,0.473719]
[1741849367155,0.012774,83509.0,83499.0,0.473719]
[1741849367503,0.011975,83505.0,83499.0,0.394219]
[1741849367718,0.011975,83504.0,83499.0,0.14272]
[1741849368040,0.239518,83501.0,83499.0,0.14272]
[1741849368167,0.011975,83504.0,83499.0,0.14572]
[1741849368589,0.0008,83509.0,83499.0,0.157696]
[1741849368791,0.251473,83508.0,83499.0,0.160696]
[1741849368994,0.026976,83500.0,83499.0,0.006]
[1741849369193,0.266496,83500.0,83499.0,0.006]
[1741849369400,0.015,83500.0,83499.0,0.006]
[1741849369599,0.266496,83500.0,83499.0,0.006]
[1741849370001,0.266496,83500.0,83499.0,0.003]
[1741849370195,0.011976,83499.0,83493.0,0.011977]
[1741849370414,0.239526,83498.0,83493.0,0.011977]
[1741849370832,0.015,83500.0,83497.0,0.251505]
[1741849371045,0.015,83500.0,83498.0,0.011976]
[1741849371477,0.015,83500.0,83499.0,0.251499]
[1741849371811,0.03377525,83500.0,83499.0,0.251499]
[1741849372211,0.03394465,83500.0,83499.0,0.251499]
[1741849373942,0.0151694,83500.0,83499.0,0.252499]
[1741849376358,4e-07,83500.0,83499.0,0.34383985]
[1741849377301,4e-07,83500.0,83499.0,0.34283985]
[1741849377660,4e-07,83500.0,83499.0,0.39733985]
[1741849377865,4e-07,83500.0,83499.0,0.382799]
[1741849378065,4e-07,83500.0,83499.0,0.42139876]
[1741849379087,4e-07,83500.0,83499.0,0.40485791]
[1741849379298,4e-07,83500.0,83499.0,0.40785791]
[1741849379894,4e-07,83500.0,83499.0,0.35235791]
[1741849380098,4e-07,83500.0,83499.0,0.35635791]
[1741849380441,4e-07,83500.0,83499.0,0.259499]
[1741849380774,4e-07,83500.0,83499.0,0.255499]
[1741849380968,4e-07,83500.0,83499.0,0.251499]
[1741849381173,4e-07,83500.0,83499.0,0.257499]
[1741849381911,4e-07,83500.0,83499.0,0.006]
[1741849382314,0.01877434,83500.0,83499.0,0.006]
[1741849382521,0.27027034,83500.0,83499.0,0.006]
[1741849382867,0.2514964,83500.0,83499.0,0.003]
[1741849383045,4e-07,83500.0,83499.0,0.003]
[1741849383472,4e-07,83500.0,83499.0,0.006]
[1741849383664,0.0119764,83500.0,83499.0,0.006]
[1741849383883,4e-07,83500.0,83499.0,0.003]
[1741849384045,4e-07,83500.0,83497.0,0.239529]
[1741849384464,4e-07,83500.0,83496.0,0.011976]
[1741849384665,4e-07,83500.0,83499.0,0.001]
[1741849384866,4e-07,83500.0,83499.0,0.013976]
[1741849385027,4e-07,83500.0,83499.0,0.012976]
[1741849385452,4e-07,83500.0,83499.0,0.01417357]
[1741849385667,0.01877488,83500.0,83499.0,0.012976]
[1741849386076,0.01877488,83500.0,83499.0,0.011976]
[1741849386928,0.01877488,83500.0,83499.0,0.012976]
[1741849387583,0.01877488,83500.0,83499.0,0.013976]
[1741849387993,0.03075088,83500.0,83499.0,0.001]
[1741849388199,0.011976,83498.0,83493.0,0.011977]
[1741849388408,0.239532,83496.0,83489.0,0.239552]
[1741849388607,0.011976,83499.0,83493.0,0.23954]
[1741849388867,0.011976,83499.0,83494.0,0.011976]
[1741849389102,0.25829588,83500.0,83487.0,0.011977]
[1741849389103,0.011976,83495.0,83487.0,0.011977]
[1741849389318,0.239539,83494.0,83488.0,0.239555]
[1741849389518,0.251503,83498.0,83492.0,0.25152]
[1741849389721,0.239532,83496.0,83491.0,0.011977]
[1741849390019,0.251503,83498.0,83492.0,0.25152]
[1741849390247,0.251503,83498.0,83494.0,0.001]
[1741849390591,0.01877488,83500.0,83494.0,0.240538]
[1741849390801,0.239523,83499.0,83494.0,0.251514]
[1741849391181,0.03075088,83500.0,83494.0,0.251514]
[1741849391562,0.239523,83499.0,83494.0,0.252514]
[1741849391827,0.239523,83499.0,83494.0,0.251514]
[1741849392028,0.251505,83497.0,83494.0,0.001]
[1741849392233,0.251511,83495.0,83494.0,0.001]
[1741849392569,0.251505,83497.0,83494.0,0.001]
[1741849392766,0.251511,83495.0,83494.0,0.001]
[1741849393155,0.011976,83495.0,83494.0,0.001]
[1741849393371,0.011976,83495.0,83490.0,0.251525]
[1741849393599,0.011976,83495.0,83494.0,0.002]
[1741849394047,0.25829588,83500.0,83494.0,0.002]
[1741849394217,0.27027188,83500.0,83494.0,0.002]
[1741849395013,0.01877488,83500.0,83497.0,0.239529]
[1741849395242,0.03075088,83500.0,83495.0,0.251511]
[1741849395665,0.01877488,83500.0,83497.0,0.239529]
[1741849395873,0.01877488,83500.0,83499.0,0.251499]
[1741849396927,4e-07,83500.0,83499.0,0.251499]
[1741849397614,4e-07,83500.0,83499.0,0.252499]
[1741849398406,4e-07,83500.0,83499.0,0.253499]
[1741849400127,5e-07,83502.0,83501.0,0.251493]
[1741849400328,0.0008,83509.0,83508.0,0.251472]
[1741849401490,0.00084149,83509.0,83508.0,0.251472]
[1741849402127,0.00084149,83509.0,83508.0,0.253472]
[1741849403052,0.00084149,83509.0,83508.0,0.255472]
[1741849415813,0.00084149,83509.0,83508.0,0.015974]
[1741849416017,0.00084149,83509.0,83508.0,0.004]
[1741849416265,0.25231049,83509.0,83508.0,0.004]
[1741849417028,0.33041049,83509.0,83508.0,0.004]
[1741849417231,0.26420114,83509.0,83508.0,0.004]
[1741849417960,0.26420114,83509.0,83508.0,0.002]
[1741849418462,0.239518,83501.0,83495.0,0.0003388]
[1741849418635,0.011976,83499.0,83495.0,0.0003388]
[1741849418839,0.011976,83496.0,83495.0,0.0003388]
[1741849419824,0.011976,83496.0,83495.0,0.0013388]
[1741849420023,0.011976,83496.0,83495.0,0.0023388]
[1741849420592,0.239526,83498.0,83495.0,0.0043388]
[1741849420593,0.251502,83498.0,83495.0,0.0043388]
[1741849421015,0.011976,83497.0,83495.0,0.0023388]
[1741849421420,0.0187758,83499.0,83495.0,0.0143148]
[1741849421622,0.0187758,83499.0,83495.0,0.2538478]
[1741849421839,0.0187758,83499.0,83495.0,0.2518478]
[1741849422122,0.0187758,83499.0,83495.0,0.2538478]
[1741849422366,0.2702758,83499.0,83495.0,0.0023388]
[1741849422570,0.2702758,83499.0,83495.0,0.0033388]
[1741849422845,0.2702758,83499.0,83495.0,0.0013388]
[1741849423329,0.2702758,83499.0,83495.0,0.0023388]
[1741849423990,0.0187758,83499.0,83496.0,0.011976]
[1741849424203,0.2582998,83499.0,83495.0,0.0023388]
[1741849424763,0.2702758,83499.0,83495.0,0.0023388]
[1741849425007,0.2702758,83499.0,83495.0,0.0013388]
[1741849425217,0.2702758,83499.0,83496.0,0.001]
[1741849425383,0.2702758,83499.0,83495.0,0.0013388]
[1741849425784,0.2702758,83499.0,83495.0,0.0023388]
[1741849425986,0.2702758,83499.0,83495.0,0.0003388]
[1741849426390,0.2702758,83499.0,83496.0,0.002]
[1741849426705,0.0187758,83499.0,83498.0,0.251502]
[1741849426919,0.01290154,83509.0,83508.0,0.251472]
[1741849427105,0.00101089,83509.0,83508.0,0.251472]
[1741849427759,0.01281194,83509.0,83508.0,0.251472]
[1741849427879,0.00101089,83509.0,83505.0,0.011975]
[1741849428078,0.0249664,83509.0,83503.0,0.251485]
[1741849428890,0.239501,83507.0,83502.0,0.011975]
[1741849429103,0.0129924,83509.0,83505.0,0.011975]
[1741849429801,0.0129924,83509.0,83508.0,0.011974]
[1741849430204,0.0129924,83509.0,83508.0,0.012974]
[1741849430645,0.0129924,83509.0,83508.0,0.011974]
[1741849431245,0.0129924,83509.0,83494.0,0.2398738]
[1741849431444,0.011975,83505.0,83500.0,0.23952]
[1741849431628,0.011975,83505.0,83500.0,0.251496]
[1741849432175,0.011974,83508.0,83502.0,0.239514]
[1741849432374,0.251474,83508.0,83502.0,0.239514]
[1741849432552,0.011975,83507.0,83502.0,0.251489]
[1741849432747,0.251478,83506.0,83500.0,0.251496]
[1741849432957,0.239527,83498.0,83495.0,0.0003388]
[1741849433165,0.251508,83496.0,83495.0,0.0003388]
[1741849433336,0.239527,83498.0,83495.0,0.0003388]
[1741849434467,0.239527,83498.0,83495.0,0.0023388]
[1741849434844,0.011976,83497.0,83495.0,0.0023388]
[1741849435908,0.251508,83496.0,83495.0,0.0023388]
[1741849436128,0.251508,83496.0,83495.0,0.0053388]
[1741849436767,0.27028371,83496.0,83495.0,0.0053388]
[1741849437054,0.27028371,83496.0,83495.0,0.0003388]
[1741849437257,0.01877571,83496.0,83495.0,0.0053388]
[1741849437461,0.01877571,83496.0,83495.0,0.0033388]
[1741849437634,0.25830771,83496.0,83495.0,0.0033388]
[1741849437839,0.25830771,83496.0,83495.0,0.0063388]
[1741849438018,0.27028371,83496.0,83495.0,0.0063388]
[1741849439053,0.27028371,83496.0,83495.0,0.0003388]
[1741849439457,0.27028371,83496.0,83495.0,0.0033388]
[1741849439818,0.27028371,83496.0,83495.0,0.0003388]
[1741849440017,0.27028371,83496.0,83495.0,0.0013388]
[1741849440243,0.27028371,83496.0,83495.0,0.0033388]
[1741849440857,0.011976,83495.0,83494.0,6e-07]
[1741849442201,0.011976,83495.0,83494.0,0.0020006]
[1741849442463,0.011976,83495.0,83494.0,6e-07]
[1741849442933,0.011977,83487.0,83482.0,0.000339]
[1741849443114,0.251535,83487.0,83482.0,0.000339]
[1741849443659,0.27031284,83487.0,83482.0,0.000339]
[1741849445536,0.27131284,83487.0,83482.0,0.000339]
[1741849446123,0.27231284,83487.0,83482.0,0.000339]
[1741849451915,0.02077784,83487.0,83486.0,0.0123168]
[1741849452127,0.02077784,83487.0,83486.0,0.01351448]
[1741849452344,0.02077784,83487.0,83486.0,0.00153648]
[1741849452733,0.02077784,83487.0,83486.0,0.0003388]
[1741849452878,0.01977784,83487.0,83486.0,0.0003388]
[1741849453203,0.01877784,83487.0,83486.0,0.0013388]
[1741849453342,0.01877784,83487.0,83486.0,0.0023388]
[1741849455781,0.03075484,83487.0,83486.0,0.0023388]
[1741849457829,0.01877784,83487.0,83486.0,0.0023388]
[1741849458056,0.01877784,83487.0,83486.0,0.0143168]
[1741849458382,0.01877784,83487.0,83486.0,0.0902168]
[1741849459193,0.01877784,83487.0,83486.0,0.1353168]
[1741849459569,0.0001694,83496.0,83495.0,0.011976]
[1741849459970,0.0001694,83496.0,83495.0,0.251511]
[1741849460757,0.0001694,83496.0,83492.0,0.251518]
[1741849460964,0.0001694,83496.0,83493.0,0.011977]
[1741849461181,0.0001694,83496.0,83495.0,0.011976]
[1741849461332,0.0001694,83496.0,83495.0,0.090076]
[1741849461733,0.0001694,83496.0,83495.0,0.0781]
[1741849462300,0.0001694,83496.0,83495.0,0.090076]
[1741849462506,0.0001694,83496.0,83495.0,0.0781]
[1741849463722,0.0001694,83496.0,83490.0,0.239548]
[1741849463945,0.251529,83489.0,83486.0,0.1277388]
[1741849464120,0.011977,83492.0,83486.0,0.1277388]
[1741849464325,0.2397024,83496.0,83490.0,0.011977]
[1741849464763,0.011976,83495.0,83490.0,0.251525]
[1741849465158,0.0001694,83496.0,83492.0,0.25152]
[1741849465362,0.0001694,83496.0,83493.0,0.011977]
[1741849465994,0.01894449,83496.0,83493.0,0.011977]
[1741849466197,0.01894449,83496.0,83492.0,0.25152]
[1741849466398,0.01894449,83496.0,83495.0,0.251511]
[1741849466605,0.01894449,83496.0,83495.0,0.011976]
[1741849466769,0.01894449,83496.0,83493.0,0.239541]
[1741849468705,0.01894449,83496.0,83495.0,0.087276]
[1741849469113,0.0001694,83502.0,83501.0,0.251493]
[1741849469312,4e-07,83502.0,83501.0,0.38763385]
[1741849470162,4e-07,83502.0,83501.0,0.41214587]
[1741849471158,0.00101089,83509.0,83501.0,0.41214587]
[1741849471159,0.00101089,83509.0,83508.0,0.251472]
[1741849471401,0.00101089,83509.0,83508.0,0.48555285]
[1741849472664,0.00101089,83509.0,83508.0,0.49055285]
[1741849473252,0.00101089,83509.0,83508.0,1.99555285]
[1741849473712,0.00101089,83509.0,83508.0,1.85371285]
[1741849473867,0.00101089,83509.0,83508.0,1.99583285]
[1741849474047,0.00101089,83509.0,83508.0,0.49583285]
[1741849476683,0.00101089,83509.0,83508.0,0.49480594]
[1741849480877,0.00101089,83509.0,83508.0,0.01]
[1741849481097,0.00101089,83509.0,83508.0,0.261472]
[1741849484883,0.00101089,83509.0,83508.0,0.343972]
[1741849485648,0.00101089,83509.0,83508.0,0.35851285]
[1741849495071,0.00101089,83509.0,83508.0,0.343972]
[1741849495259,0.00101089,83509.0,83508.0,0.50167285]
[1741849495459,0.00101089,83509.0,83508.0,0.487132]
[1741849496245,0.00101089,83509.0,83508.0,0.4874708]
[1741849496440,0.00101089,83509.0,83508.0,0.4049708]
[1741849496683,0.00101089,83509.0,83508.0,0.0103388]
[1741849496887,0.01298489,83509.0,83508.0,0.0103388]
[1741849498054,0.14138489,83509.0,83508.0,0.0053388]
[1741849498260,0.15353327,83509.0,83508.0,0.0003388]
[1741849498703,0.15353327,83509.0,83508.0,0.0033388]
[1741849498916,0.15353327,83509.0,83508.0,0.0003388]
[1741849499514,0.15353327,83509.0,83508.0,0.0033388]
[1741849499714,0.17230856,83509.0,83508.0,0.0033388]
[1741849500204,0.17230856,83509.0,83508.0,0.0003388]
[1741849500624,0.17330856,83509.0,83508.0,0.0003388]
[1741849501029,0.17230856,83509.0,83508.0,8e-07]
[1741849501179,0.138975,83502.0,83501.0,8e-07]
[1741849501387,0.37849,83502.0,83501.0,8e-07]
[1741849503108,0.38149,83502.0,83501.0,8e-07]
[1741849503458,0.33395427,83509.0,83504.0,0.011975]
[1741849503637,0.239502,83507.0,83501.0,8e-07]
[1741849503856,0.003,83502.0,83501.0,8e-07]
[1741849504217,0.003,83502.0,83501.0,0.0119758]
[1741849504424,0.239502,83507.0,83501.0,0.0119758]
[1741849504986,0.251472,83508.0,83503.0,0.011975]
[1741849505191,0.23951,83504.0,83501.0,8e-07]
[1741849505395,0.011975,83502.0,83501.0,8e-07]
[1741849507326,0.002,83507.0,83506.0,0.011975]
[1741849507564,0.01315927,83509.0,83508.0,0.011974]
[1741849507757,0.01315927,83509.0,83507.0,0.251475]
[1741849507934,0.01877397,83507.0,83504.0,0.251482]
[1741849508130,0.01877397,83507.0,83502.0,0.239512]
[1741849508332,0.01877397,83507.0,83503.0,0.011975]
[1741849508536,0.01877397,83507.0,83505.0,0.011975]
[1741849508968,0.01877397,83507.0,83506.0,0.251478]
[1741849509539,0.02077397,83507.0,83506.0,0.251478]
[1741849509849,0.02077397,83507.0,83506.0,0.012975]
[1741849510226,0.02077397,83507.0,83506.0,0.001]
[1741849510410,0.01877397,83507.0,83506.0,0.252478]
[1741849511033,0.01877397,83507.0,83506.0,0.251478]
[1741849513123,0.00101089,83509.0,83508.0,0.011974]
[1741849513259,0.00101089,83509.0,83508.0,0.01317128]
[1741849513880,0.00101089,83509.0,83508.0,0.011974]
[1741849514887,0.00101089,83509.0,83508.0,0.251472]
[1741849515320,0.00101089,83509.0,83506.0,0.252478]
[1741849516319,0.01978406,83509.0,83506.0,0.251478]
[1741849516499,0.011975,83506.0,83501.0,0.2395178]
[1741849516697,0.011975,83505.0,83501.0,8e-07]
[1741849516880,0.251481,83506.0,83501.0,0.0119758]
[1741849517075,0.011975,83507.0,83501.0,0.0119758]
[1741849517558,0.23951,83504.0,83501.0,8e-07]
[1741849517708,0.011975,83505.0,83501.0,8e-07]
[1741849517938,0.01978406,83509.0,83501.0,8e-07]
[1741849517939,0.01978406,83509.0,83508.0,0.251472]
[1741849520294,0.01978406,83509.0,83508.0,0.253472]
[1741849520673,0.01978406,83509.0,83508.0,0.255472]
[1741849538713,0.01978406,83509.0,83508.0,0.255472]
[1741849538911,0.01978406,83509.0,83508.0,0.303672]
[1741849541298,0.0001696,83521.0,83508.0,0.303672]
[1741849541299,0.0001696,83521.0,83520.0,0.251436]
[1741849542577,0.0021696,83521.0,83520.0,0.251436]
[1741849543501,0.0031696,83521.0,83520.0,0.251436]
[1741849543711,0.00321431,83521.0,83520.0,0.251436]
[1741849546375,0.00121431,83521.0,83520.0,0.251436]
[1741849546640,0.00121431,83521.0,83517.0,0.011973]
[1741849546755,0.00021431,83521.0,83520.0,0.251436]
[1741849547164,0.00794671,83533.0,83532.0,0.239429]
[1741849547369,0.00799142,83533.0,83532.0,0.239429]
[1741849547569,0.00799142,83533.0,83532.0,0.2514]
[1741849548415,0.00799142,83533.0,83529.0,0.237435]
[1741849548715,0.00799142,83533.0,83528.0,0.011972]
[1741849549030,0.02096242,83533.0,83528.0,0.011972]
[1741849549297,0.239442,83528.0,83524.0,0.077]
[1741849549455,0.239436,83530.0,83523.0,0.011972]
[1741849550058,0.011971,83529.0,83523.0,0.251424]
[1741849550861,0.251411,83529.0,83523.0,0.251424]
[1741849551096,0.03074113,83532.0,83514.0,0.011974]
[1741849551097,0.011973,83521.0,83514.0,0.011974]
[1741849551347,0.239469,83518.0,83513.0,0.0823]
[1741849551479,0.251442,83518.0,83513.0,0.0823]
[1741849551681,0.011973,83521.0,83515.0,0.239477]
[1741849552112,0.011973,83521.0,83516.0,0.011973]
[1741849552288,0.01877104,83523.0,83519.0,0.011973]
[1741849552498,0.27019904,83523.0,83517.0,0.241472]
[1741849552740,0.01877104,83523.0,83518.0,0.011973]
[1741849553067,0.011973,83521.0,83517.0,0.005]
[1741849553266,0.011973,83521.0,83517.0,0.003]
[1741849553478,0.011973,83518.0,83517.0,0.003]
[1741849553772,0.251436,83520.0,83515.0,0.239477]
[1741849553976,0.251436,83520.0,83516.0,0.002]
[1741849554603,0.251436,83520.0,83516.0,0.004]
[1741849554805,0.251436,83520.0,83517.0,0.0003388]
[1741849555146,0.239469,83518.0,83517.0,0.0003388]
[1741849555369,0.251442,83518.0,83517.0,0.0003388]
[1741849555846,0.251421,83525.0,83517.0,0.0143118]
[1741849556070,0.011973,83521.0,83517.0,0.0033388]
[1741849556270,0.011973,83518.0,83517.0,0.0033388]
[1741849556473,0.011973,83518.0,83517.0,0.0063388]
[1741849556753,0.011973,83518.0,83517.0,0.0033388]
[1741849557095,0.011973,83518.0,83517.0,0.0043388]
[1741849558208,0.25822604,83523.0,83517.0,0.0043388]
[1741849558408,0.251436,83520.0,83517.0,0.0003388]
[1741849558689,0.251436,83520.0,83517.0,0.0063388]
[1741849559192,0.239469,83518.0,83517.0,0.0003388]
[1741849559398,0.03074304,83523.0,83517.0,0.0013388]
[1741849559605,0.239469,83518.0,83517.0,0.0033388]
[1741849559798,0.011973,83519.0,83517.0,0.0023388]
[1741849560141,0.251442,83519.0,83517.0,0.0023388]
[1741849560344,0.011972,83522.0,83517.0,0.2547818]
[1741849561255,0.011972,83527.0,83520.0,0.239462]
[1741849561522,0.48377651,83530.0,83523.0,0.251424]
[1741849561697,0.251407,83530.0,83524.0,0.239449]
[1741849561858,0.251418,83526.0,83521.0,0.251433]
[1741849562472,0.251418,83526.0,83521.0,0.23946]
[1741849562698,0.239452,83524.0,83520.0,0.011973]
[1741849562874,0.011972,83525.0,83520.0,0.011973]
[1741849563094,0.011972,83522.0,83521.0,0.002]
[1741849563372,0.251429,83522.0,83521.0,0.002]
[1741849563506,0.01877095,83522.0,83521.0,0.002]
[1741849563701,0.01877095,83522.0,83521.0,0.001]
[1741849564442,0.03074295,83522.0,83521.0,0.001]
[1741849564849,0.03074295,83522.0,83517.0,0.0003388]
[1741849565350,0.01877095,83522.0,83520.0,0.240463]
[1741849566096,0.01877095,83522.0,83520.0,0.001]
[1741849566305,0.23946,83521.0,83520.0,0.001]
[1741849566509,0.251427,83523.0,83520.0,0.001]
[1741849566705,0.251427,83523.0,83517.0,0.0123118]
[1741849566932,0.011973,83518.0,83517.0,0.0003388]
[1741849567135,0.060273,83518.0,83517.0,0.0003388]
[1741849567712,0.136573,83518.0,83517.0,0.0003388]
[1741849568807,0.138573,83518.0,83517.0,0.0003388]
[1741849569025,0.136573,83518.0,83517.0,0.0003388]
[1741849569739,0.138573,83518.0,83517.0,0.0003388]
[1741849570076,0.141573,83518.0,83517.0,0.0003388]
[1741849570719,0.138573,83518.0,83517.0,0.0003388]
[1741849570922,0.16916077,83518.0,83517.0,0.0003388]
[1741849573661,0.16034817,83518.0,83517.0,0.0003388]
[1741849573861,0.065273,83518.0,83517.0,0.0003388]
[1741849574064,0.016973,83518.0,83517.0,0.0003388]